fUST/lending_fUST_20250604
["ID","MTS","AMOUNT","RATE_DAILY","PERIOD"]
[364176209,1749029440348,-151.0,0.00020716,2]
[364176210,1749029440357,-151.0,0.00020716,2]
[364176212,1749029440369,-167.46,0.00020716,2]
[364176215,1749029440379,-660.726709,0.00020716,2]
[364176217,1749029440389,-660.726709,0.00020716,2]
[364176218,1749029440399,-151.0,0.00020716,2]
[364176221,1749029440409,-440.0,0.00020716,2]
[364176223,1749029440419,-151.0,0.00020716,2]
[364176225,1749029440429,-290.359547,0.00020716,2]
[364176226,1749029440438,-3918.95,0.00020716,2]
[364176229,1749029440452,-400.0,0.00020716,2]
[364176231,1749029440462,-528.88,0.00020716,2]
[364176233,1749029440471,-440.0,0.00020716,2]
[364176234,1749029440481,-440.0,0.00020716,2]
[364176236,1749029440491,-237.847437,0.00020716,2]
[364176238,1749029440501,-237.847437,0.00020716,2]
[364176240,1749029440510,-390.0,0.00020716,2]
[364176242,1749029440520,-440.0,0.00020716,2]
[364176244,1749029440531,-440.0,0.00020716,2]
[364176246,1749029440540,-478.11,0.00020716,2]
[364176248,1749029440551,-500.0,0.00020717,2]
[364176250,1749029440560,-900.071035,0.00020719,2]
[364176252,1749029440570,-555.3510491,0.00020762,3]
[364176254,1749029440579,-440.0,0.00020783,2]
[364176256,1749029440589,-440.0,0.00020783,2]
[364176258,1749029440599,-440.0,0.00020783,2]
[364176260,1749029440608,-440.0,0.00020783,2]
[364176262,1749029440619,-440.0,0.00020783,2]
[364176264,1749029440629,-4166.63,0.00020783,2]
[364176266,1749029440639,-400.0,0.00020783,2]
[364176268,1749029440649,-555.3510491,0.00020934,4]
[364176270,1749029440658,-797.14,0.00020988,2]
[364176272,1749029440668,-437.56,0.00020989,2]
[364176274,1749029440678,-440.0,0.00020989,2]
[364176276,1749029440688,-440.0,0.00020989,2]
[364176278,1749029440698,-970.15,0.00020989,2]
[364176280,1749029440708,-612.71,0.00020989,2]
[364176282,1749029440717,-167.26,0.0002099,2]
[364176284,1749029440726,-3918.95,0.0002099,2]
[364176286,1749029440736,-440.0,0.0002099,2]
[364176288,1749029440745,-440.0,0.0002099,2]
[364176290,1749029440755,-440.0,0.0002099,2]
[364176292,1749029440764,-440.0,0.0002099,2]
[364176294,1749029440774,-478.11,0.0002099,2]
[364176296,1749029440783,-360.24165597,0.00020991,2]
[364176298,1749029440793,-18088.82667805,0.00021,2]
[364176376,1749029441567,-430.0,0.00019892,2]
[364176378,1749029441577,-847.82,0.00020158,3]
[364176380,1749029441586,-4047.33000025,0.00021,2]
[364176382,1749029441597,-379.50160881,0.00021,2]
[364176385,1749029441610,-2415.92547,0.00021,2]
[364176387,1749029441622,-4292.11031699,0.00021,2]
[364176392,1749029441659,-430.0,0.00019892,2]
[364176394,1749029441668,-3005.42461889,0.00021,2]
[364176396,1749029441680,-1316.39270049,0.00021,2]
[364176398,1749029441691,-380.2112442,0.00021,2]
[364176401,1749029441702,-527.69100549,0.00021,2]
[364176403,1749029441712,-331.0,0.00021,2]
[364176405,1749029441723,-1013.9836,0.00021,2]
[364176407,1749029441734,-2816.49324483,0.00021,2]
[364176508,1749029442832,-1085.09280307,0.00020538,2]
[364176515,1749029442890,-1117.05160026,0.00020538,2]
[364176517,1749029442900,-2137.73991293,0.00021,2]
[364176519,1749029442912,-550.73773191,0.00021,2]
[364176845,1749029446098,-10186.72829741,0.00021,2]
[364178479,1749030251757,165.492897,0.00013699,2]
[364178487,1749030402945,5000.0,0.00024922,30]
[364178553,1749030637649,-557.61000951,0.000189,2]
[364178554,1749030637661,-206.893183,0.00019053,2]
[364178555,1749030637671,-513.69690756,0.00019293,2]
[364178556,1749030637680,-174.13578361,0.00019791,2]
[364178557,1749030637690,-300.0,0.00019889,2]
[364178558,1749030637700,-300.0,0.00019889,2]
[364178559,1749030637711,-300.0,0.00019889,2]
[364178560,1749030637721,-300.0,0.00019889,2]
[364178561,1749030637731,-300.0,0.00019889,2]
[364178562,1749030637740,-1200.0,0.00019889,2]
[364178563,1749030637750,-430.0,0.0001989,2]
[364178564,1749030637759,-430.0,0.0001989,2]
[364178565,1749030637769,-430.0,0.0001989,2]
[364178566,1749030637778,-478.29724161,0.0001989,2]
[364178567,1749030637788,-430.0,0.0001989,2]
[364178568,1749030637797,-430.0,0.0001989,2]
[364178569,1749030637807,-430.0,0.0001989,2]
[364178570,1749030637816,-430.0,0.0001989,2]
[364178571,1749030637826,-532.86,0.0001989,2]
[364178572,1749030637835,-430.0,0.0001989,2]
[364178573,1749030637845,-688.78,0.0001989,2]
[364178574,1749030637858,-430.0,0.0001989,2]
[364178576,1749030637867,-440.0,0.0001989,2]
[364178578,1749030637877,-416.03976802,0.0001989,2]
[364178580,1749030637886,-430.0,0.0001989,2]
[364178581,1749030637895,-469.54571426,0.0001989,2]
[364178583,1749030637906,-430.0,0.0001989,2]
[364178585,1749030637915,-420.0,0.00019891,2]
[364178587,1749030637925,-430.0,0.00019891,2]
[364178589,1749030637935,-370.0,0.00019891,2]
[364178591,1749030637946,-430.0,0.00019891,2]
[364178593,1749030637955,-430.0,0.00019891,2]
[364178595,1749030637965,-318.28958925,0.00019891,2]
[364178597,1749030637975,-430.0,0.00019891,2]
[364178599,1749030637984,-430.0,0.00019891,2]
[364178601,1749030637993,-430.0,0.00019891,2]
[364178603,1749030638003,-400.0,0.00019891,2]
[364178605,1749030638012,-440.0,0.00019891,2]
[364178606,1749030638022,-430.0,0.00019891,2]
[364178607,1749030638033,-400.0,0.00019891,2]
[364178608,1749030638043,-430.0,0.00019891,2]
[364178609,1749030638052,-430.0,0.00019891,2]
[364178610,1749030638062,-430.0,0.00019891,2]
[364178611,1749030638071,-440.0,0.00019891,2]
[364178612,1749030638081,-430.0,0.00019891,2]
[364178613,1749030638090,-430.0,0.00019891,2]
[364178614,1749030638100,-430.0,0.00019891,2]
[364178615,1749030638110,-558.52803603,0.00019891,2]
[364178616,1749030638119,-430.0,0.00019891,2]
[364178617,1749030638129,-430.0,0.00019891,2]
[364178618,1749030638139,-440.0,0.00019891,2]
[364178619,1749030638149,-844.02,0.00019891,2]
[364178620,1749030638161,-430.0,0.00019891,2]
[364178622,1749030638170,-430.0,0.00019891,2]
[364178624,1749030638179,-248.70266026,0.00019891,2]
[364178625,1749030638189,-586.67,0.00019891,2]
[364178626,1749030638198,-440.0,0.00019891,2]
[364178627,1749030638208,-430.0,0.00019891,2]
[364178628,1749030638217,-560.39973459,0.00019891,2]
[364178629,1749030638227,-430.0,0.00019891,2]
[364178630,1749030638236,-430.0,0.00019891,2]
[364178631,1749030638246,-430.0,0.00019891,2]
[364178632,1749030638255,-430.0,0.00019891,2]
[364178633,1749030638264,-430.0,0.00019891,2]
[364178634,1749030638274,-472.67966896,0.00019891,2]
[364178635,1749030638283,-370.0,0.00019891,2]
[364178636,1749030638292,-430.0,0.00019891,2]
[364178637,1749030638302,-370.0,0.00019891,2]
[364178639,1749030638311,-430.0,0.00019891,2]
[364178640,1749030638320,-372.43608441,0.00019891,2]
[364178642,1749030638329,-430.0,0.00019891,2]
[364178644,1749030638338,-430.0,0.00019891,2]
[364178646,1749030638347,-550.7791644,0.00019891,2]
[364178648,1749030638357,-465.27846272,0.00019891,2]
[364178650,1749030638366,-430.0,0.00019891,2]
[364178652,1749030638376,-430.0,0.00019891,2]
[364178653,1749030638386,-430.0,0.00019891,2]
[364178654,1749030638395,-430.0,0.00019891,2]
[364178655,1749030638406,-308.60394457,0.00019891,2]
[364178656,1749030638416,-430.0,0.00019891,2]
[364178657,1749030638425,-430.0,0.00019891,2]
[364178658,1749030638434,-360.0,0.00019891,2]
[364178659,1749030638443,-430.0,0.00019891,2]
[364178660,1749030638452,-430.0,0.00019891,2]
[364178661,1749030638462,-430.0,0.00019891,2]
[364178662,1749030638471,-434.57867396,0.00019891,2]
[364178663,1749030638480,-430.0,0.00019891,2]
[364178664,1749030638490,-487.59,0.00019891,2]
[364178665,1749030638499,-430.0,0.00019891,2]
[364178666,1749030638509,-430.0,0.00019891,2]
[364178667,1749030638518,-430.0,0.00019891,2]
[364178668,1749030638527,-440.0,0.00019891,2]
[364178669,1749030638537,-350.0,0.00019891,2]
[364178670,1749030638546,-430.0,0.00019891,2]
[364178671,1749030638555,-500.77518585,0.00019891,2]
[364178672,1749030638564,-430.0,0.00019891,2]
[364178673,1749030638574,-430.0,0.00019891,2]
[364178674,1749030638583,-430.0,0.00019891,2]
[364178675,1749030638592,-430.0,0.00019891,2]
[364178676,1749030638602,-430.0,0.00019891,2]
[364178677,1749030638611,-430.0,0.00019891,2]
[364178678,1749030638620,-430.0,0.00019891,2]
[364178679,1749030638630,-430.0,0.00019891,2]
[364178680,1749030638639,-430.0,0.00019891,2]
[364178681,1749030638649,-430.0,0.00019891,2]
[364178682,1749030638787,-430.0,0.00019891,2]
[364178683,1749030638797,-430.0,0.00019891,2]
[364178684,1749030638806,-370.0,0.00019891,2]
[364178685,1749030638816,-430.0,0.00019891,2]
[364178686,1749030638826,-430.0,0.00019891,2]
[364178687,1749030638835,-400.0,0.00019892,2]
[364178688,1749030638845,-404.54301582,0.00019892,2]
[364178689,1749030638859,-450.0,0.00019892,2]
[364178690,1749030638868,-403.02800479,0.00019892,2]
[364178691,1749030638878,-430.0,0.00019892,2]
[364178692,1749030638887,-400.0,0.00019892,2]
[364178693,1749030638899,-300.0,0.00019892,2]
[364178694,1749030638910,-430.0,0.00019892,2]
[364178695,1749030638919,-381.895455,0.00019892,2]
[364178696,1749030638930,-400.0,0.00019892,2]
[364178697,1749030638939,-430.0,0.00019892,2]
[364178698,1749030638949,-430.0,0.00019892,2]
[364178699,1749030638959,-263.39919856,0.00019892,2]
[364178700,1749030638968,-430.0,0.00019892,2]
[364178701,1749030638977,-410.8998185,0.00019892,2]
[364178702,1749030638987,-453.05177797,0.00019892,2]
[364178703,1749030638996,-430.0,0.00019892,2]
[364178704,1749030639006,-403.66564712,0.00019892,2]
[364178705,1749030639016,-430.0,0.00019892,2]
[364178706,1749030639027,-430.0,0.00019892,2]
[364178707,1749030639037,-430.0,0.00019892,2]
[364178708,1749030639047,-430.0,0.00019892,2]
[364178709,1749030639058,-430.0,0.00019892,2]
[364178710,1749030639068,-408.7168881,0.00019892,2]
[364178711,1749030639078,-430.0,0.00019892,2]
[364178712,1749030639088,-430.0,0.00019892,2]
[364178713,1749030639098,-430.0,0.00019892,2]
[364178714,1749030639108,-300.0,0.00019892,2]
[364178715,1749030639118,-430.0,0.00019892,2]
[364178716,1749030639128,-430.0,0.00019892,2]
[364178717,1749030639138,-430.0,0.00019892,2]
[364178718,1749030639148,-430.0,0.00019892,2]
[364178719,1749030639160,-451.57756083,0.00019892,2]
[364178720,1749030639170,-370.0,0.00019892,2]
[364178721,1749030639180,-406.26,0.00019892,2]
[364178722,1749030639190,-351.22284102,0.00019892,2]
[364178723,1749030639199,-430.0,0.00019892,2]
[364178724,1749030639209,-430.0,0.00019892,2]
[364178725,1749030639219,-400.0,0.00019892,2]
[364178726,1749030639229,-517.8333763,0.00019892,2]
[364178727,1749030639238,-430.0,0.00019892,2]
[364178728,1749030639248,-409.11422479,0.00019892,2]
[364178729,1749030639258,-430.0,0.00019892,2]
[364178730,1749030639267,-430.0,0.00019892,2]
[364178731,1749030639277,-410.0,0.00019892,2]
[364178732,1749030639286,-430.0,0.00019892,2]
[364178733,1749030639296,-402.00983343,0.00019892,2]
[364178734,1749030639305,-430.0,0.00019892,2]
[364178735,1749030639316,-430.0,0.00019892,2]
[364178736,1749030639326,-430.0,0.00019892,2]
[364178737,1749030639336,-450.0,0.00019892,2]
[364178738,1749030639345,-430.0,0.00019892,2]
[364178739,1749030639355,-430.0,0.00019892,2]
[364178740,1749030639365,-370.0,0.00019892,2]
[364178741,1749030639376,-430.0,0.00019892,2]
[364178742,1749030639387,-370.0,0.00019892,2]
[364178743,1749030639397,-541.25,0.00019892,2]
[364178744,1749030639407,-430.0,0.00019892,2]
[364178745,1749030639417,-430.0,0.00019892,2]
[364178746,1749030639427,-430.0,0.00019892,2]
[364178747,1749030639437,-500.0,0.00019892,2]
[364178748,1749030639446,-434.09679413,0.00019892,2]
[364178749,1749030639456,-430.0,0.00019892,2]
[364178751,1749030639465,-430.0,0.00019892,2]
[364178752,1749030639475,-430.0,0.00019892,2]
[364178753,1749030639484,-430.0,0.00019892,2]
[364178754,1749030639493,-430.0,0.00019892,2]
[364178755,1749030639503,-556.21303384,0.00019892,2]
[364178757,1749030639511,-440.0,0.00019892,2]
[364178758,1749030639522,-430.0,0.00019892,2]
[364178760,1749030639532,-434.35912574,0.00019892,2]
[364178762,1749030639544,-430.0,0.00019892,2]
[364178763,1749030639553,-430.0,0.00019892,2]
[364178764,1749030639563,-430.0,0.00019892,2]
[364178765,1749030639573,-304.25123012,0.00019892,2]
[364178766,1749030639583,-431.48465819,0.00019892,2]
[364178767,1749030639593,-430.0,0.00019892,2]
[364178768,1749030639603,-547.50980648,0.00019892,2]
[364178769,1749030639614,-430.0,0.00019892,2]
[364178770,1749030639624,-430.0,0.00019892,2]
[364178771,1749030639634,-416.82741354,0.00019892,2]
[364178772,1749030639643,-440.0,0.00019892,2]
[364178773,1749030639653,-420.0,0.00019892,2]
[364178774,1749030639664,-430.0,0.00019892,2]
[364178775,1749030639674,-440.0,0.00019892,2]
[364178776,1749030639683,-430.0,0.00019892,2]
[364178777,1749030639693,-430.0,0.00019892,2]
[364178778,1749030639703,-400.0,0.00019892,2]
[364178779,1749030639712,-407.61638864,0.00019892,2]
[364178780,1749030639723,-440.0,0.00019892,2]
[364178781,1749030639732,-440.0,0.00019892,2]
[364178782,1749030639741,-440.0,0.00019892,2]
[364178783,1749030639751,-430.0,0.00019892,2]
[364178784,1749030639761,-440.0,0.00019892,2]
[364178785,1749030639771,-440.0,0.00019892,2]
[364178786,1749030639781,-430.0,0.00019892,2]
[364178787,1749030639790,-477.71944048,0.00019892,2]
[364178788,1749030639800,-440.0,0.00019892,2]
[364178789,1749030639809,-430.0,0.00019892,2]
[364178790,1749030639819,-430.0,0.00019892,2]
[364178791,1749030639828,-430.0,0.00019892,2]
[364178792,1749030639837,-3472.19,0.00019892,2]
[364178793,1749030639847,-430.0,0.00019892,2]
[364178794,1749030639860,-430.0,0.00019892,2]
[364178795,1749030639870,-959.01,0.00019892,2]
[364178796,1749030639879,-400.0,0.00019892,2]
[364178797,1749030639889,-430.0,0.00019892,2]
[364178798,1749030639899,-430.0,0.00019892,2]
[364178799,1749030639909,-403.89836182,0.00019892,2]
[364178800,1749030639918,-430.0,0.00019892,2]
[364178801,1749030639928,-234.68903668,0.00019892,2]
[364178803,1749030639938,-430.0,0.00019892,2]
[364178804,1749030639948,-430.0,0.00019892,2]
[364178806,1749030639957,-440.0,0.00019892,2]
[364178807,1749030639967,-430.0,0.00019892,2]
[364178808,1749030639976,-430.0,0.00019892,2]
[364178809,1749030639985,-430.0,0.00019892,2]
[364178810,1749030639995,-430.0,0.00019892,2]
[364178811,1749030640004,-430.0,0.00019892,2]
[364178812,1749030640015,-430.0,0.00019892,2]
[364178813,1749030640027,-470.0,0.00019892,2]
[364178814,1749030640036,-500.0,0.00019892,2]
[364178815,1749030640046,-430.0,0.00019892,2]
[364178816,1749030640057,-430.0,0.00019892,2]
[364178817,1749030640067,-430.0,0.00019892,2]
[364178818,1749030640076,-430.0,0.00019892,2]
[364178819,1749030640086,-414.25997631,0.00019892,2]
[364178820,1749030640095,-430.0,0.00019892,2]
[364178821,1749030640106,-430.0,0.00019892,2]
[364178822,1749030640117,-228.45092331,0.00019892,2]
[364178823,1749030640126,-430.0,0.00019892,2]
[364178824,1749030640136,-440.0,0.00019892,2]
[364178825,1749030640145,-430.0,0.00019892,2]
[364178826,1749030640155,-430.0,0.00019892,2]
[364178827,1749030640166,-430.0,0.00019892,2]
[364178828,1749030640175,-430.0,0.00019892,2]
[364178829,1749030640185,-430.0,0.00019892,2]
[364178830,1749030640195,-529.95506072,0.00019892,2]
[364178831,1749030640206,-430.0,0.00019892,2]
[364178832,1749030640215,-400.13845116,0.00019892,2]
[364178833,1749030640225,-165.0216328,0.00019893,2]
[364178834,1749030640236,-448.8720037,0.00019893,2]
[364178835,1749030640245,-160.0,0.00019893,2]
[364178836,1749030640254,-450.0,0.00019893,2]
[364178837,1749030640264,-430.0,0.00019893,2]
[364178838,1749030640276,-430.0,0.00019893,2]
[364178839,1749030640288,-430.0,0.00019893,2]
[364178840,1749030640298,-430.0,0.00019893,2]
[364178841,1749030640308,-407.2653725,0.00019893,2]
[364178842,1749030640317,-430.0,0.00019893,2]
[364178843,1749030640328,-430.0,0.00019893,2]
[364178844,1749030640339,-430.0,0.00019893,2]
[364178845,1749030640351,-430.0,0.00019893,2]
[364178846,1749030640361,-430.0,0.00019893,2]
[364178847,1749030640370,-534.10705261,0.00019893,2]
[364178848,1749030640380,-430.0,0.00019893,2]
[364178849,1749030640389,-356.58951366,0.00019893,2]
[364178850,1749030640398,-430.0,0.00019893,2]
[364178851,1749030640409,-430.0,0.00019893,2]
[364178852,1749030640419,-430.0,0.00019893,2]
[364178853,1749030640428,-430.0,0.00019893,2]
[364178854,1749030640438,-430.0,0.00019893,2]
[364178855,1749030640447,-430.0,0.00019893,2]
[364178856,1749030640456,-430.0,0.00019893,2]
[364178857,1749030640466,-510.65433092,0.00019893,2]
[364178858,1749030640475,-430.0,0.00019893,2]
[364178859,1749030640485,-430.0,0.00019893,2]
[364178860,1749030640494,-430.0,0.00019893,2]
[364178861,1749030640503,-430.0,0.00019893,2]
[364178862,1749030640513,-430.0,0.00019893,2]
[364178863,1749030640522,-440.0,0.00019893,2]
[364178864,1749030640532,-320.0,0.00019893,2]
[364178865,1749030640541,-430.0,0.00019893,2]
[364178866,1749030640551,-430.0,0.00019893,2]
[364178867,1749030640560,-430.0,0.00019893,2]
[364178868,1749030640570,-430.0,0.00019893,2]
[364178869,1749030640579,-430.0,0.00019893,2]
[364178870,1749030640588,-430.0,0.00019893,2]
[364178871,1749030640598,-315.91145305,0.00019893,2]
[364178872,1749030640607,-430.0,0.00019893,2]
[364178873,1749030640617,-403.93788456,0.00019893,2]
[364178874,1749030640627,-430.0,0.00019893,2]
[364178875,1749030640636,-430.0,0.00019893,2]
[364178876,1749030640646,-430.0,0.00019893,2]
[364178877,1749030640655,-430.0,0.00019893,2]
[364178878,1749030640667,-430.0,0.00019893,2]
[364178879,1749030640675,-430.0,0.00019893,2]
[364178880,1749030640685,-430.0,0.00019893,2]
[364178881,1749030640694,-430.0,0.00019893,2]
[364178882,1749030640703,-430.0,0.00019893,2]
[364178883,1749030640713,-430.0,0.00019893,2]
[364178884,1749030640722,-545.97057908,0.00019893,2]
[364178885,1749030640731,-430.0,0.00019893,2]
[364178886,1749030640743,-310.04369753,0.00019893,2]
[364178887,1749030640752,-430.0,0.00019893,2]
[364178888,1749030640762,-430.0,0.00019893,2]
[364178889,1749030640771,-430.0,0.00019893,2]
[364178890,1749030640780,-430.0,0.00019893,2]
[364178891,1749030640790,-430.0,0.00019893,2]
[364178892,1749030640799,-430.0,0.00019893,2]
[364178893,1749030640807,-430.0,0.00019893,2]
[364178894,1749030640817,-430.0,0.00019893,2]
[364178895,1749030640826,-400.0,0.00019893,2]
[364178896,1749030640835,-430.0,0.00019893,2]
[364178897,1749030640844,-430.0,0.00019893,2]
[364178898,1749030640856,-410.64575157,0.00019893,2]
[364178899,1749030640865,-430.0,0.00019893,2]
[364178900,1749030640875,-432.54800341,0.00019893,2]
[364178901,1749030640884,-430.0,0.00019893,2]
[364178902,1749030640894,-430.0,0.00019893,2]
[364178903,1749030640904,-430.0,0.00019893,2]
[364178904,1749030640916,-430.0,0.00019893,2]
[364178905,1749030640926,-404.68798773,0.00019893,2]
[364178906,1749030640937,-430.0,0.00019893,2]
[364178907,1749030640946,-430.0,0.00019893,2]
[364178908,1749030640956,-410.00131723,0.00019893,2]
[364178909,1749030640965,-430.0,0.00019893,2]
[364178910,1749030640975,-430.0,0.00019893,2]
[364178911,1749030640984,-241.6558406,0.00019893,2]
[364178912,1749030640994,-430.0,0.00019893,2]
[364178913,1749030641003,-403.63512398,0.00019893,2]
[364178914,1749030641012,-430.0,0.00019893,2]
[364178915,1749030641022,-430.0,0.00019893,2]
[364178916,1749030641031,-440.0,0.00019893,2]
[364178917,1749030641040,-430.0,0.00019894,2]
[364178918,1749030641049,-431.94208704,0.00019894,2]
[364178919,1749030641059,-430.0,0.00019894,2]
[364178920,1749030641068,-430.0,0.00019894,2]
[364178921,1749030641078,-430.0,0.00019894,2]
[364178922,1749030641087,-430.0,0.00019894,2]
[364178923,1749030641096,-419.13269343,0.00019894,2]
[364178924,1749030641105,-446.4728135,0.00019894,2]
[364178925,1749030641115,-212.390997,0.00019894,2]
[364178926,1749030641124,-400.0,0.00019894,2]
[364178927,1749030641133,-314.98208564,0.00019941,2]
[364178928,1749030641142,-842.5625,0.00019941,2]
[364178929,1749030641151,-212.90465545,0.00019941,2]
[364178930,1749030641162,-12672.94222187,0.00019941,2]
[364178931,1749030641171,-229.45591648,0.00019941,2]
[364178932,1749030641181,-160.0,0.00019941,2]
[364178933,1749030641191,-2946.38,0.00019954,2]
[364178934,1749030641200,-430.0,0.00019954,2]
[364178935,1749030641210,-430.0,0.00019954,2]
[364178936,1749030641219,-576.85,0.00019954,2]
[364178937,1749030641229,-430.0,0.00019954,2]
[364178938,1749030641238,-440.0,0.00019954,2]
[364178939,1749030641247,-430.0,0.00019954,2]
[364178940,1749030641256,-440.0,0.00019954,2]
[364178941,1749030641265,-430.0,0.00019954,2]
[364178942,1749030641275,-221.5857828,0.00019954,2]
[364178943,1749030641284,-440.0,0.00019954,2]
[364178944,1749030641293,-430.0,0.00019954,2]
[364178945,1749030641302,-500.0,0.000201,2]
[364178946,1749030641312,-364.2452897,0.000201,2]
[364178947,1749030641321,-153.0,0.000201,2]
[364178948,1749030641330,-508.36,0.00020156,3]
[364178949,1749030641340,-169.45,0.00020159,3]
[364178950,1749030641349,-532.86,0.00020164,2]
[364178951,1749030641358,-688.78,0.00020164,2]
[364178952,1749030641367,-440.0,0.00020164,2]
[364178953,1749030641376,-420.0,0.00020165,2]
[364178954,1749030641385,-457.8,0.00020165,2]
[364178955,1749030641395,-440.0,0.00020165,2]
[364178956,1749030641405,-844.02,0.00020165,2]
[364178957,1749030641416,-198.17,0.00020165,2]
[364178958,1749030641425,-420.0,0.00020165,2]
[364178959,1749030641435,-440.0,0.00020166,2]
[364178960,1749030641444,-440.0,0.00020166,2]
[364178961,1749030641453,-440.0,0.00020166,2]
[364178962,1749030641463,-420.0,0.00020166,2]
[364178963,1749030641472,-440.0,0.00020166,2]
[364178964,1749030641482,-181.4,0.00020166,2]
[364178965,1749030641491,-420.0,0.00020166,2]
[364178966,1749030641501,-440.0,0.00020166,2]
[364178967,1749030641510,-440.0,0.00020166,2]
[364178968,1749030641519,-3472.19,0.00020166,2]
[364178969,1749030641528,-959.01,0.00020166,2]
[364178970,1749030641537,-562.21,0.00020166,2]
[364178971,1749030641547,-186.58060694,0.00020166,2]
[364178972,1749030641556,-420.0,0.00020167,2]
[364178973,1749030641565,-440.0,0.00020167,2]
[364178974,1749030641574,-151.0,0.00020169,2]
[364178975,1749030641686,-151.0,0.00020169,2]
[364178976,1749030641696,-151.0,0.00020169,2]
[364178977,1749030641705,-2946.38,0.00020228,2]
[364178978,1749030641715,-440.0,0.00020228,2]
[364178979,1749030641724,-391.66,0.00020228,2]
[364178980,1749030641734,-440.0,0.00020228,2]
[364178981,1749030641743,-222.325101,0.00020235,2]
[364178982,1749030641752,-338.9,0.0002042,3]
[364178983,1749030641762,-532.86,0.00020438,2]
[364178984,1749030641771,-688.78,0.00020438,2]
[364178985,1749030641781,-440.0,0.00020438,2]
[364178986,1749030641790,-440.0,0.00020439,2]
[364178987,1749030641799,-844.02,0.00020439,2]
[364178988,1749030641810,-372.74,0.0002044,2]
[364178989,1749030641819,-410.0,0.0002044,2]
[364178990,1749030641829,-440.0,0.0002044,2]
[364178991,1749030641838,-410.0,0.0002044,2]
[364178992,1749030641848,-360.06676194,0.0002044,2]
[364178993,1749030641972,-49.93323806,0.0002044,2]
[364178994,1749030641982,-317.46764265,0.0002044,2]
[364178995,1749030641991,-216.21911922,0.0002044,2]
[364178996,1749030642003,-1163.84060701,0.0002044,2]
[364178997,1749030642015,-2092.13027377,0.0002044,2]
[364178998,1749030642024,-959.01,0.0002044,2]
[364178999,1749030642033,-440.0,0.00020441,2]
[364179000,1749030642043,-207.4,0.00020472,2]
[364179001,1749030642052,-1301.45972623,0.00020502,2]
[364179002,1749030642064,-1644.92027377,0.00020502,2]
[364179003,1749030642075,-440.0,0.00020502,2]
[364179004,1749030642084,-440.0,0.00020502,2]
[364179005,1749030642094,-151.0,0.00020509,2]
[364179006,1749030642103,-235.516144,0.00020509,2]
[364179007,1749030642113,-151.0,0.00020509,2]
[364179008,1749030642122,-582.04238192,0.00020612,2]
[364179009,1749030642132,-6091.92120031,0.0002066,2]
[364179010,1749030642144,-12220.45321539,0.0002066,2]
[364179011,1749030642155,-3718.72201562,0.0002066,2]
[364179012,1749030642169,-1124.24250417,0.0002066,2]
[364179178,1749031348544,164.656812,0.00013699,2]
[364179210,1749031756893,160.053727,0.000246,30]
[364180185,1749031846527,-165.751492,0.00018099,2]